bitfinex/quotes_BTCUSD_20240728
["timestamp","ask_amount","ask_price","bid_price","bid_amount"]
[1722127030028,0.30225322,68125.0,68124.0,0.0766]
[1722127030228,0.18482222,68125.0,68124.0,0.194032]
[1722127030441,0.15008298,68125.0,68124.0,0.1425]
[1722127030948,0.15008298,68125.0,68124.0,0.1565]
[1722127031155,0.26751398,68125.0,68124.0,0.1565]
[1722127031321,0.27333015,68125.0,68124.0,0.1705]
[1722127031933,0.50819215,68125.0,68124.0,0.1565]
[1722127032150,0.74305415,68125.0,68124.0,0.1705]
[1722127032335,0.77753732,68125.0,68124.0,0.1705]
[1722127032991,0.56571375,68125.0,68124.0,0.1705]
[1722127033157,0.80057575,68125.0,68124.0,0.028]
[1722127033358,0.77753732,68125.0,68124.0,0.028]
[1722127034178,0.77759873,68125.0,68124.0,0.028]
[1722127034359,0.77759865,68125.0,68124.0,0.028]
[1722127034899,0.54273665,68125.0,68124.0,0.028]
[1722127035856,0.19044365,68125.0,68124.0,0.145432]
[1722127036070,0.33091295,68125.0,68124.0,0.028]
[1722127036523,0.21348195,68125.0,68124.0,0.028]
[1722127036710,0.30787465,68125.0,68124.0,0.028]
[1722127036937,0.19044365,68125.0,68124.0,0.028]
[1722127037134,0.30787465,68125.0,68124.0,0.028]
[1722127039223,0.19044365,68125.0,68124.0,0.028]
[1722127039831,0.21348165,68125.0,68124.0,0.028]
[1722127040177,0.19044365,68125.0,68124.0,0.028]
[1722127040490,0.15589915,68125.0,68124.0,0.028]
[1722127040690,0.19117374,68125.0,68124.0,0.028]
[1722127040937,0.19117374,68125.0,68124.0,0.014]
[1722127041194,0.19070317,68125.0,68124.0,0.028]
[1722127041894,0.19070317,68125.0,68123.0,0.117434]
[1722127042063,0.15589915,68125.0,68123.0,0.117434]
[1722127042287,0.15589915,68125.0,68124.0,0.028]
[1722127042419,0.00581617,68125.0,68124.0,0.82279179]
[1722127042610,0.01534777,68129.0,68124.0,0.47049479]
[1722127042805,0.15025957,68128.0,68127.0,0.352282]
[1722127043064,0.15647091,68128.0,68127.0,0.352282]
[1722127043459,0.15647091,68128.0,68127.0,0.117427]
[1722127043665,0.15647091,68128.0,68127.0,0.352282]
[1722127044666,0.15647091,68128.0,68127.0,0.366282]
[1722127045208,0.15647091,68128.0,68127.0,0.380282]
[1722127046150,0.02924785,68128.0,68127.0,1.443247]
[1722127046357,0.00621134,68128.0,68127.0,1.566247]
[1722127046547,0.45077872,68154.0,68129.0,0.0648]
[1722127046761,0.15025957,68153.0,68149.0,0.0648]
[1722127046975,0.19113284,68153.0,68150.0,0.00043279]
[1722127047122,0.03569801,68152.0,68150.0,0.117388]
[1722127047353,0.03464398,68151.0,68150.0,0.586939]
[1722127047537,0.00562965,68151.0,68150.0,0.668639]
[1722127048329,0.15025957,68152.0,68151.0,0.352158]
[1722127048518,0.15025957,68152.0,68151.0,0.58693]
[1722127049134,0.17328904,68152.0,68151.0,0.58693]
[1722127049319,0.17328904,68152.0,68151.0,0.58736279]
[1722127049554,0.17328904,68152.0,68151.0,0.35259079]
[1722127049680,0.17328904,68152.0,68151.0,0.36659079]
[1722127049897,0.17892816,68152.0,68151.0,0.36659079]
[1722127050265,0.15589869,68152.0,68151.0,0.01443279]
[1722127050498,0.15589869,68152.0,68151.0,0.13181879]
[1722127050642,0.15589869,68152.0,68151.0,0.36659079]
[1722127050809,0.15589869,68152.0,68151.0,0.38059079]
[1722127051214,0.15589869,68152.0,68151.0,0.14581879]
[1722127051931,0.15589869,68152.0,68151.0,0.145386]
[1722127052154,0.15589869,68152.0,68151.0,0.14581879]
[1722127052472,0.15589869,68152.0,68151.0,0.61536279]
[1722127052705,0.15025957,68152.0,68151.0,0.61536279]
[1722127052906,0.15025957,68152.0,68151.0,0.61493]
[1722127053501,0.17328902,68152.0,68151.0,0.60093]
[1722127053881,0.17328902,68152.0,68151.0,0.380158]
[1722127054084,0.17412902,68152.0,68151.0,0.380158]
[1722127054284,0.17412902,68152.0,68151.0,0.131386]
[1722127054285,0.15613487,68152.0,68151.0,0.131386]
[1722127054698,0.15613487,68152.0,68151.0,0.028]
[1722127054899,0.15613487,68152.0,68151.0,0.145386]
[1722127055098,0.15613487,68152.0,68151.0,0.366158]
[1722127055346,0.15613487,68152.0,68151.0,0.380158]
[1722127057170,0.17916432,68152.0,68151.0,0.380158]
[1722127057773,0.17916432,68152.0,68151.0,0.08681]
[1722127058015,0.17916432,68152.0,68151.0,0.43940079]
[1722127058191,0.17916432,68152.0,68151.0,0.438968]
[1722127058394,0.17916432,68152.0,68151.0,0.424968]
[1722127058594,0.17916432,68152.0,68151.0,0.410968]
[1722127058882,0.17916432,68152.0,68151.0,0.424968]
[1722127059099,0.17916432,68152.0,68151.0,0.410968]
[1722127059451,0.17916432,68152.0,68151.0,0.424968]
[1722127059860,0.17916432,68152.0,68151.0,0.437968]
[1722127060261,0.17916432,68152.0,68151.0,0.424968]
[1722127060595,0.17916432,68152.0,68151.0,0.43940079]
[1722127060798,0.17412902,68152.0,68151.0,0.438968]
[1722127060998,0.17972953,68152.0,68151.0,0.438968]
[1722127061204,0.17972953,68152.0,68151.0,0.43940079]
[1722127061399,0.17412902,68152.0,68151.0,0.438968]
[1722127062632,0.17412902,68152.0,68151.0,0.67374]
[1722127062958,0.17412902,68152.0,68151.0,0.64574]
[1722127063183,0.17412902,68152.0,68151.0,0.65974]
[1722127063356,0.17412902,68152.0,68151.0,0.67374]
[1722127063882,0.15109957,68152.0,68151.0,0.67374]
[1722127064177,0.15109957,68152.0,68151.0,0.438968]
[1722127064415,0.15109957,68152.0,68151.0,0.204196]
[1722127064619,0.15109957,68152.0,68151.0,0.438968]
[1722127066894,0.15109957,68152.0,68151.0,0.67374]
[1722127067095,0.00084,68152.0,68151.0,0.908512]
[1722127069531,0.00084,68152.0,68151.0,0.438968]
[1722127069964,0.00084,68152.0,68151.0,0.67374]
[1722127070508,0.02386818,68152.0,68151.0,0.67374]
[1722127070937,0.00084,68152.0,68151.0,0.67374]
[1722127072845,0.00084,68152.0,68151.0,0.908512]
[1722127074075,0.02386766,68152.0,68151.0,0.908512]
[1722127075673,0.02386766,68152.0,68151.0,0.67374]
[1722127075878,0.00084,68152.0,68151.0,0.67374]
[1722127076285,0.00084,68152.0,68151.0,0.908512]
[1722127076690,0.00084,68152.0,68151.0,0.67374]
[1722127077124,0.03345782,68152.0,68151.0,0.67374]
[1722127077323,0.00084,68152.0,68151.0,0.67374]
[1722127078221,0.03284706,68152.0,68151.0,0.67374]
[1722127078835,0.05587504,68152.0,68151.0,0.67374]
[1722127079287,0.02386798,68152.0,68151.0,0.67374]
[1722127079534,0.00084,68152.0,68151.0,0.67374]
[1722127079659,0.03277569,68152.0,68151.0,0.67374]
[1722127079856,0.00084,68152.0,68151.0,0.67374]
[1722127081760,0.03296254,68152.0,68151.0,0.438968]
[1722127082196,0.03296254,68152.0,68151.0,0.67374]
[1722127082794,0.05599057,68152.0,68151.0,0.67374]
[1722127083290,0.01534777,68166.0,68152.0,0.1428]
[1722127083514,0.03084,68178.0,68177.0,0.352024]
[1722127083755,0.03084,68178.0,68177.0,0.96419]
[1722127084013,0.03652377,68178.0,68177.0,0.96419]
[1722127084255,0.03084,68178.0,68177.0,0.729507]
[1722127084497,0.03084,68178.0,68177.0,0.494824]
[1722127084736,0.03084,68178.0,68177.0,0.729507]
[1722127084960,0.03084,68178.0,68177.0,0.494824]
[1722127085210,0.03084,68178.0,68177.0,0.743507]
[1722127085451,0.03084,68178.0,68172.0,0.1428]
[1722127085667,0.03084,68178.0,68177.0,0.117341]
[1722127085921,0.03084,68178.0,68177.0,0.131341]
[1722127086111,0.03084,68178.0,68177.0,0.117341]
[1722127086383,0.03650216,68178.0,68177.0,0.028]
[1722127087076,0.03650216,68178.0,68177.0,0.042]
[1722127087077,0.42144073,68178.0,68177.0,0.042]
[1722127087303,0.53877973,68178.0,68177.0,0.042]
[1722127087745,0.77345873,68178.0,68177.0,0.028]
[1722127087959,0.77345873,68178.0,68177.0,0.042]
[1722127088288,0.77345873,68178.0,68177.0,0.028]
[1722127088497,0.79925358,68178.0,68177.0,0.028]
[1722127088697,0.79925358,68178.0,68177.0,0.039]
[1722127088919,1.03393258,68178.0,68177.0,0.011]
[1722127089121,0.77345873,68178.0,68177.0,0.014]
[1722127089320,0.42144073,68178.0,68166.0,0.11736]
[1722127089525,0.15025957,68177.0,68167.0,0.117358]
[1722127089700,0.117353,68170.0,68165.0,0.117361]
[1722127089912,0.15590531,68169.0,68165.0,0.117361]
[1722127090306,0.15590531,68169.0,68164.0,0.234727]
[1722127090507,0.27326031,68169.0,68164.0,0.117363]
[1722127090935,0.15590531,68169.0,68166.0,0.117359]
[1722127091137,0.15025957,68169.0,68166.0,0.117359]
[1722127091480,0.02948972,68168.0,68167.0,0.117358]
[1722127091683,0.02302241,68168.0,68167.0,0.352075]
[1722127091885,0.02302241,68168.0,68167.0,0.586792]
[1722127092267,0.14818,68178.0,68171.0,0.2347]
[1722127092516,0.17705326,68177.0,68173.0,0.117348]
[1722127092729,0.02679369,68176.0,68171.0,0.35205]
[1722127092952,0.15025957,68175.0,68174.0,0.117346]
[1722127093155,0.15673131,68175.0,68173.0,0.117347]
[1722127093353,0.00647174,68175.0,68174.0,0.352039]
[1722127093824,0.03084,68178.0,68177.0,0.117341]
[1722127094250,0.03732911,68178.0,68177.0,0.117341]
[1722127095183,0.06034962,68178.0,68177.0,0.352024]
[1722127095383,0.06034962,68178.0,68177.0,0.009]
[1722127095589,0.05386051,68178.0,68177.0,0.009]
[1722127095767,0.06034739,68178.0,68177.0,0.009]
[1722127096188,0.17768639,68178.0,68177.0,0.009]
[1722127096387,0.06034739,68178.0,68177.0,0.009]
[1722127097197,0.06034739,68178.0,68177.0,0.018]
[1722127097426,0.06034739,68178.0,68177.0,0.135341]
[1722127098951,0.06034739,68178.0,68177.0,0.018]
[1722127099177,0.17768639,68178.0,68177.0,0.018]
[1722127099398,0.03732688,68178.0,68177.0,0.018]
[1722127102333,0.15466588,68178.0,68177.0,0.018]
[1722127102660,0.17768651,68178.0,68177.0,0.018]
[1722127102970,0.34885321,68178.0,68177.0,0.018]
[1722127103169,1.20159021,68178.0,68177.0,0.018]
[1722127103373,0.96691121,68178.0,68177.0,0.018]
[1722127103785,0.71132508,68178.0,68177.0,0.018]
[1722127103988,0.58330455,68178.0,68177.0,0.018]
[1722127105969,0.58369922,68178.0,68177.0,0.018]
[1722127106169,0.34902022,68178.0,68177.0,0.018]
[1722127106674,0.06034751,68178.0,68177.0,0.370024]
[1722127107077,0.06034751,68178.0,68177.0,0.604707]
[1722127107078,0.05386063,68178.0,68177.0,0.604707]
[1722127107663,0.05386063,68178.0,68177.0,0.370024]
[1722127108446,0.03084,68178.0,68177.0,0.370024]
[1722127109914,0.03084,68178.0,68177.0,0.604707]
[1722127110123,0.03084,68178.0,68177.0,0.748307]
[1722127110317,0.03084,68178.0,68177.0,0.98299]
[1722127110517,0.03084,68178.0,68177.0,0.748307]
[1722127110941,0.03084,68178.0,68177.0,0.739307]
[1722127111277,0.03084,68178.0,68177.0,0.753307]
[1722127111556,0.05385902,68178.0,68177.0,0.518624]
[1722127111771,0.05385902,68178.0,68177.0,0.753307]
[1722127112321,0.05385902,68178.0,68177.0,0.744307]
[1722127112525,0.05385902,68178.0,68177.0,0.758307]
[1722127114650,0.05385902,68178.0,68177.0,0.288941]
[1722127114855,0.05385902,68178.0,68177.0,0.145341]
[1722127115075,0.06035938,68178.0,68177.0,0.145341]
[1722127115278,0.03084,68178.0,68177.0,0.380024]
[1722127116392,0.03084,68178.0,68177.0,0.614707]
[1722127116805,0.00084,68178.0,68177.0,0.380024]
[1722127117184,0.15109957,68178.0,68177.0,0.028]
[1722127117388,0.15759993,68178.0,68177.0,0.028]
[1722127117608,0.15759993,68178.0,68177.0,0.145341]
[1722127118063,0.15759993,68178.0,68177.0,0.028]
[1722127118422,0.18061979,68178.0,68177.0,0.028]
[1722127118603,0.15759993,68178.0,68177.0,0.028]
[1722127120735,0.15759993,68178.0,68177.0,0.380024]
[1722127120935,0.15109957,68178.0,68177.0,0.380024]
[1722127121140,0.15109957,68178.0,68177.0,0.145341]
[1722127121979,0.17411943,68178.0,68177.0,0.145341]
[1722127122198,0.17411943,68178.0,68177.0,0.380024]
[1722127123042,0.02385986,68178.0,68177.0,0.614707]
[1722127123727,0.02385986,68178.0,68177.0,0.380024]
[1722127126156,0.02385986,68178.0,68177.0,0.614707]
[1722127126978,0.02385986,68178.0,68177.0,0.84939]
[1722127127375,0.00084,68178.0,68177.0,0.84939]
[1722127128079,0.00084,68178.0,68177.0,0.99179]
[1722127128400,0.00084,68178.0,68177.0,1.09179]
[1722127130390,0.02385894,68178.0,68177.0,1.09179]
[1722127131502,0.00084,68178.0,68177.0,1.09179]
[1722127134473,0.0238586,68178.0,68177.0,1.09179]
[1722127135235,0.0238586,68178.0,68177.0,1.4832162]
[1722127135421,0.0238586,68178.0,68177.0,1.13577384]
[1722127135623,0.0238586,68178.0,68177.0,1.09179]
[1722127136053,0.0238586,68178.0,68177.0,1.39345797]
[1722127136283,0.0238586,68178.0,68177.0,1.90677504]
[1722127136516,0.0238586,68178.0,68177.0,1.7968126]
[1722127136740,0.0238586,68178.0,68177.0,1.90677504]
[1722127136973,0.0238586,68178.0,68177.0,1.89277504]
[1722127137688,0.0238586,68178.0,68177.0,1.7828126]
[1722127137910,0.0238586,68178.0,68177.0,1.89277504]
[1722127138126,0.0238586,68178.0,68177.0,1.7828126]
[1722127138380,0.0188586,68178.0,68177.0,1.93307217]
[1722127138600,0.0188586,68178.0,68177.0,2.05703461]
[1722127138818,0.0188586,68178.0,68177.0,1.93307217]
[1722127139337,0.0188586,68178.0,68177.0,1.94703125]
[1722127139786,0.0188586,68178.0,68177.0,1.94703365]
[1722127140015,0.0188586,68178.0,68177.0,1.94903365]
[1722127140267,0.0188586,68178.0,68177.0,1.94703365]
[1722127141652,0.0188586,68178.0,68177.0,1.94902151]
[1722127144704,0.002,68179.0,68178.0,1.447434]
[1722127144922,0.002,68179.0,68178.0,2.7998817]
[1722127145147,0.002,68179.0,68178.0,2.8822817]
[1722127145402,0.00827,68180.0,68179.0,1.212742]
[1722127145649,0.00827,68180.0,68179.0,2.59739236]
[1722127145877,0.00827,68188.0,68187.0,1.204716]
[1722127146113,0.00827,68188.0,68187.0,1.78545766]
[1722127148229,0.00827,68188.0,68187.0,1.79945766]
[1722127148485,0.00827,68188.0,68187.0,1.81345766]
[1722127149893,0.00827,68188.0,68187.0,1.57880966]
[1722127150822,0.00827,68188.0,68187.0,0.61866566]
[1722127151027,0.00827,68188.0,68187.0,0.128]
[1722127151233,0.88154157,68188.0,68187.0,0.028]
[1722127151432,0.8906835,68188.0,68187.0,0.028]
[1722127151634,0.64689657,68188.0,68187.0,0.028]
[1722127152077,0.117325,68187.0,68178.0,0.234678]
[1722127152380,0.14467,68188.0,68187.0,0.351972]
[1722127152525,0.15381187,68188.0,68187.0,0.126324]
[1722127152726,0.14467,68188.0,68187.0,0.210724]
[1722127152938,0.00827,68188.0,68187.0,0.454372]
[1722127153132,0.00827,68188.0,68187.0,0.369972]
[1722127153338,0.00827,68188.0,68187.0,0.360972]
[1722127154161,0.00827,68188.0,68187.0,0.351972]
[1722127154581,0.00827,68188.0,68187.0,0.125324]
[1722127155111,0.03128585,68188.0,68187.0,0.125324]
[1722127155318,0.03128585,68188.0,68187.0,0.133324]
[1722127155499,0.03128585,68188.0,68187.0,0.016]
[1722127156701,0.90605742,68188.0,68187.0,0.016]
[1722127156916,0.68055397,68188.0,68187.0,0.016]
[1722127157230,0.03128585,68188.0,68187.0,0.133324]
[1722127157437,0.03128585,68188.0,68187.0,0.016]
[1722127158479,0.03128585,68188.0,68187.0,0.133324]
[1722127159258,0.03128585,68188.0,68187.0,0.367972]
[1722127160292,0.03128585,68188.0,68187.0,0.60262]
[1722127160717,0.03128585,68188.0,68187.0,0.837268]
[1722127160900,0.03128585,68188.0,68187.0,0.897268]
[1722127161464,0.03128585,68188.0,68187.0,1.020268]
[1722127161665,0.03128585,68188.0,68187.0,1.012268]
[1722127161866,0.03128585,68188.0,68187.0,1.004268]
[1722127162082,0.03128585,68188.0,68187.0,1.018268]
[1722127162246,0.03128585,68188.0,68187.0,1.032268]
[1722127163644,0.03128585,68188.0,68187.0,1.04073078]
[1722127164379,0.03128585,68188.0,68187.0,1.19656057]
[1722127164588,0.00827,68188.0,68187.0,1.2404856]
[1722127165017,0.00827,68188.0,68187.0,1.19656057]
[1722127165207,0.00827,68188.0,68187.0,1.18256057]
[1722127165832,0.00827,68188.0,68187.0,1.19656057]
[1722127166005,0.00827,68188.0,68187.0,1.18256057]
[1722127166595,0.00827,68188.0,68187.0,1.10743078]
[1722127167394,0.00827,68188.0,68187.0,1.12143078]
[1722127169898,1.23500957,68188.0,68187.0,0.03646278]
[1722127170151,1.23500957,68188.0,68181.0,0.10985031]
[1722127170152,0.724642,68173.0,68165.0,0.04394012]
[1722127170376,0.724642,68173.0,68159.0,0.000924]
[1722127170377,0.35206,68170.0,68159.0,0.000924]
[1722127170643,0.75287925,68170.0,68168.0,0.058794]
[1722127170881,0.51817238,68170.0,68159.0,0.000924]
[1722127171106,0.28346538,68170.0,68160.0,0.11737]
[1722127171327,0.51817238,68170.0,68164.0,0.058794]
[1722127171561,0.75287938,68170.0,68159.0,0.000924]
[1722127171768,0.75287938,68170.0,68162.0,0.058798]
[1722127172106,0.75287938,68170.0,68160.0,0.11737]
[1722127172528,0.51817238,68170.0,68161.0,0.176166]
[1722127172730,0.75287938,68170.0,68161.0,0.058799]
[1722127173486,0.73702657,68170.0,68161.0,0.058799]
[1722127173670,0.77397503,68170.0,68161.0,0.058799]
[1722127174061,0.77397503,68170.0,68161.0,0.176168]
[1722127174831,0.53926803,68170.0,68162.0,0.117366]
[1722127175338,0.53926803,68170.0,68161.0,0.058799]
[1722127175541,0.77397503,68170.0,68161.0,0.058799]
[1722127175964,0.77397503,68170.0,68159.0,0.118296]
[1722127176182,0.77397503,68170.0,68161.0,0.058799]
[1722127176373,0.77397503,68170.0,68159.0,0.000924]
[1722127176729,0.77397503,68170.0,68159.0,0.059723]
[1722127176730,0.77407455,68170.0,68159.0,0.059723]
[1722127177050,0.77407455,68170.0,68159.0,0.000924]
[1722127178399,0.79709789,68170.0,68159.0,0.000924]
[1722127178607,1.00878155,68170.0,68159.0,0.000924]
[1722127178765,1.14768155,68170.0,68159.0,0.000924]
[1722127179824,1.14749283,68170.0,68159.0,0.000924]
[1722127180154,1.22538285,68170.0,68159.0,0.000924]
[1722127180309,1.26224249,68170.0,68159.0,0.000924]
[1722127180896,1.28526721,68170.0,68159.0,0.000924]
[1722127181113,0.93581093,68170.0,68159.0,0.000924]
[1722127181512,1.17051793,68170.0,68159.0,0.000924]
[1722127181712,0.91278621,68170.0,68169.0,0.00217658]
[1722127181935,0.87592657,68170.0,68169.0,0.00217658]
[1722127182479,0.91296957,68170.0,68169.0,0.00217658]
[1722127182683,0.87592657,68170.0,68169.0,0.00217658]
[1722127182887,0.91297021,68170.0,68169.0,0.00217658]
[1722127183813,0.87592657,68170.0,68169.0,0.00217658]
[1722127184456,0.40651257,68170.0,68169.0,0.00217658]
[1722127184621,0.57911957,68170.0,68169.0,0.00217658]
[1722127185123,0.60214299,68170.0,68169.0,0.00217658]
[1722127185320,0.57911957,68170.0,68169.0,0.002]
[1722127186300,0.81382657,68170.0,68169.0,0.002]
[1722127188660,0.83684996,68170.0,68169.0,0.002]
[1722127188864,0.81382657,68170.0,68169.0,0.002]
[1722127192263,0.83684983,68170.0,68169.0,0.002]
[1722127193247,0.81382657,68170.0,68169.0,0.002]
[1722127193891,0.50231957,68170.0,68169.0,0.002]
[1722127194889,0.50214306,68170.0,68169.0,0.002]
[1722127195089,0.15025957,68170.0,68169.0,0.002]
[1722127195773,0.15025957,68170.0,68169.0,0.0683]
[1722127196463,0.17328168,68170.0,68169.0,0.0683]
[1722127197619,0.02302211,68170.0,68169.0,0.655075]
[1722127197842,0.234669,68181.0,68175.0,0.117344]
[1722127197843,0.117337,68180.0,68175.0,0.117344]
[1722127197992,0.18746059,68179.0,68175.0,0.117344]
[1722127198190,0.03720102,68178.0,68175.0,0.117343]
[1722127198433,0.15025957,68177.0,68176.0,0.11826699]
[1722127198647,0.18746059,68177.0,68176.0,0.11826699]
[1722127198857,0.18746059,68177.0,68176.0,0.00092399]
[1722127199212,0.18746059,68177.0,68174.0,0.117346]
[1722127199213,0.18733168,68177.0,68174.0,0.117345]
[1722127199417,0.03707211,68176.0,68175.0,0.117345]
[1722127199659,0.03779817,68176.0,68175.0,0.117345]
[1722127200375,0.03779817,68176.0,68175.0,0.123345]
[1722127200782,0.03779817,68176.0,68175.0,0.117345]
[1722127200933,0.01534777,68185.0,68182.0,0.117331]
[1722127201136,0.01534777,68185.0,68179.0,0.234676]
[1722127201137,0.18799567,68184.0,68179.0,0.234676]
[1722127201336,0.15025957,68184.0,68181.0,0.117334]
[1722127201559,0.03758431,68183.0,68182.0,0.117333]
[1722127201758,0.03758431,68183.0,68182.0,0.351999]
[1722127201759,0.18784388,68183.0,68182.0,0.351999]
[1722127201964,0.18784388,68183.0,68182.0,0.117333]
[1722127202122,0.18784388,68183.0,68182.0,0.351999]
[1722127202318,0.18784388,68183.0,68182.0,0.353999]
[1722127202525,0.18784388,68183.0,68182.0,0.351999]
[1722127202814,0.18784388,68183.0,68182.0,0.117333]
[1722127203024,0.18784388,68183.0,68182.0,0.121333]
[1722127203775,0.03758431,68183.0,68182.0,0.355999]
[1722127203987,0.03802655,68183.0,68182.0,0.355999]
[1722127204157,0.03865676,68187.0,68184.0,0.117328]
[1722127204352,0.18828604,68186.0,68184.0,0.117327]
[1722127204612,0.15025957,68186.0,68185.0,0.117327]
[1722127204835,0.18832388,68186.0,68185.0,0.117327]
[1722127205117,0.18832388,68186.0,68185.0,0.351982]
[1722127205118,0.2113418,68186.0,68185.0,0.351982]
[1722127205672,0.03827,68188.0,68187.0,0.351972]
[1722127205926,0.03827,68188.0,68187.0,0.58662]
[1722127206145,0.03827,68188.0,68187.0,0.351972]
[1722127207402,0.03927,68188.0,68187.0,0.359972]
[1722127207606,0.03927,68188.0,68187.0,0.59462]
[1722127208543,0.04027,68188.0,68187.0,0.837268]
[1722127208696,0.06328618,68188.0,68187.0,0.66552]
[1722127210113,0.06228618,68188.0,68187.0,0.65752]
[1722127210514,0.06228618,68188.0,68187.0,0.67052]
[1722127210913,0.06228618,68188.0,68187.0,0.94414979]
[1722127211101,0.06228618,68188.0,68187.0,1.17879779]
[1722127211260,0.06128618,68188.0,68187.0,1.17079779]
[1722127211467,0.06128618,68188.0,68187.0,1.18479779]
[1722127211665,0.06128618,68188.0,68187.0,1.17179779]
[1722127211869,0.06128618,68188.0,68187.0,1.15779779]
[1722127212214,0.03827,68188.0,68187.0,1.18579779]
[1722127212413,0.03827,68188.0,68187.0,1.110668]
[1722127215297,0.03827,68188.0,68187.0,1.41562757]
[1722127215901,0.03827,68188.0,68187.0,1.63627557]
[1722127216106,0.03827,68188.0,68187.0,1.65027557]
[1722127216309,0.06128298,68188.0,68187.0,1.63627557]
[1722127216517,0.06128298,68188.0,68187.0,1.62227557]
[1722127216715,0.06128298,68188.0,68187.0,1.65027557]
[1722127217158,0.06128298,68188.0,68187.0,1.40162757]
[1722127217565,0.06128298,68188.0,68187.0,1.65027557]
[1722127218230,0.03128298,68188.0,68187.0,1.65027557]
[1722127219047,0.03128298,68188.0,68187.0,1.41562757]
[1722127219448,0.03128298,68188.0,68187.0,1.110668]
[1722127222153,0.00827,68188.0,68187.0,1.110668]
[1722127223407,0.00827,68188.0,68187.0,1.26092757]
[1722127223791,0.00827,68188.0,68187.0,1.49557557]
[1722127225124,0.00827,68188.0,68187.0,1.65027557]
[1722127225334,0.0312827,68188.0,68187.0,1.65027557]
[1722127225539,0.00827,68188.0,68187.0,1.65027557]
[1722127226238,0.00827,68188.0,68187.0,1.65227557]
[1722127227048,0.002,68199.0,68196.0,0.821159]
[1722127227244,0.002,68199.0,68196.0,1.86149207]
[1722127227425,0.002,68199.0,68196.0,1.88449207]
[1722127228435,0.002,68199.0,68196.0,1.89849207]
[1722127228659,0.03128128,68197.0,68196.0,1.89849207]
[1722127228877,0.03128128,68197.0,68196.0,2.13310907]
[1722127229241,0.03128128,68197.0,68196.0,2.29736864]
[1722127229363,0.00827,68197.0,68196.0,2.29736864]
[1722127229548,0.00827,68197.0,68196.0,2.28336864]
[1722127231039,0.00827,68197.0,68196.0,1.89849207]
[1722127231248,0.00827,68197.0,68196.0,1.75899207]
[1722127231728,0.00827,68197.0,68196.0,1.77299207]
[1722127232309,0.00827,68197.0,68196.0,1.39965041]
[1722127234146,0.03128061,68197.0,68196.0,1.39965041]
[1722127234348,0.00827,68197.0,68196.0,1.39965041]
[1722127234555,0.00827,68197.0,68196.0,1.408097]
[1722127235382,0.00827,68197.0,68196.0,1.473797]
[1722127235570,0.00827,68197.0,68196.0,1.70565657]
[1722127235771,0.00827,68197.0,68196.0,1.94027357]
[1722127236021,0.03128044,68197.0,68196.0,1.94027357]
[1722127236354,0.03128044,68197.0,68196.0,1.98394467]
[1722127237473,0.00827,68197.0,68196.0,1.94027357]
[1722127238497,0.00827,68197.0,68196.0,2.33112479]
[1722127238824,0.00827,68197.0,68196.0,1.94027357]
[1722127239370,0.00827,68197.0,68196.0,2.06210998]
[1722127239626,0.00827,68197.0,68196.0,2.33117249]
[1722127239826,0.00827,68197.0,68196.0,1.98398437]
[1722127240078,0.00827,68197.0,68196.0,1.983985]
[1722127240252,0.00827,68197.0,68196.0,1.94027357]
[1722127240462,0.03128022,68197.0,68196.0,2.33118655]
[1722127240669,0.03128022,68197.0,68196.0,2.2656194]
[1722127240869,0.03128022,68197.0,68196.0,2.00585616]
[1722127241071,0.03128022,68197.0,68196.0,2.26562483]
[1722127241695,0.03128022,68197.0,68196.0,2.00587792]
[1722127242048,0.00827,68197.0,68196.0,2.3312322]
[1722127242170,0.00827,68197.0,68196.0,1.62100173]
[1722127242372,0.00827,68197.0,68196.0,1.47370173]
[1722127242600,0.00827,68197.0,68196.0,1.408097]
[1722127242775,0.00827,68197.0,68196.0,1.47373204]
[1722127243632,0.00827,68197.0,68196.0,1.79909103]
[1722127244629,0.00827,68197.0,68196.0,1.73345599]
[1722127245592,0.00827,68197.0,68196.0,1.79913424]
[1722127245786,0.00827,68197.0,68196.0,1.73345599]
[1722127245997,0.00827,68197.0,68196.0,1.408097]
[1722127246230,0.00827,68197.0,68196.0,1.7334569]
[1722127246986,0.00827,68197.0,68196.0,1.7417269]
[1722127247591,0.00827,68197.0,68196.0,1.416367]
[1722127247796,0.00827,68197.0,68196.0,1.80741408]
[1722127248211,0.00827,68197.0,68196.0,1.46017292]
[1722127248412,0.0312806,68197.0,68196.0,1.46018348]
[1722127248822,0.00827,68197.0,68196.0,1.46018348]
[1722127249239,0.00827,68197.0,68196.0,1.46017993]
[1722127249411,0.00827,68197.0,68196.0,1.416367]
[1722127249810,0.00827,68197.0,68196.0,1.46019171]
[1722127250438,0.00827,68197.0,68196.0,1.416367]
[1722127250639,0.00827,68197.0,68196.0,1.46019171]
[1722127251508,0.00827,68197.0,68196.0,1.46021852]
[1722127251972,0.03128085,68197.0,68196.0,1.46021898]
[1722127252717,0.03128085,68197.0,68196.0,1.46022946]
[1722127253169,0.03128085,68197.0,68196.0,1.416367]
[1722127253395,0.03128085,68197.0,68196.0,1.48216069]
[1722127253838,0.00827,68197.0,68196.0,1.48216069]
[1722127254057,0.00827,68197.0,68196.0,1.86872181]
[1722127254276,0.00827,68197.0,68196.0,1.80292812]
[1722127254474,0.00827,68197.0,68196.0,1.89065304]
[1722127255424,0.00827,68197.0,68196.0,1.80292812]
[1722127255635,0.00827,68197.0,68196.0,1.91258427]
[1722127256014,0.00827,68197.0,68196.0,1.8029177]
[1722127256361,0.00827,68197.0,68196.0,1.8811177]
[1722127256566,0.00827,68197.0,68196.0,1.99084983]
[1722127256886,0.03128039,68197.0,68196.0,2.00295765]
[1722127257228,0.03128039,68197.0,68196.0,1.99085183]
[1722127258166,0.03128039,68197.0,68196.0,2.22546883]
[1722127258366,0.03128039,68197.0,68196.0,2.38783435]
[1722127258950,0.03128039,68197.0,68196.0,2.06248365]
[1722127259154,0.03128039,68197.0,68196.0,2.38782969]
[1722127259553,0.03128039,68197.0,68196.0,2.38782858]
[1722127259757,0.03128039,68197.0,68196.0,2.54252858]
[1722127261165,0.03128039,68197.0,68196.0,2.62682858]
[1722127261463,0.03128039,68197.0,68196.0,3.21400488]
[1722127261630,0.03128039,68197.0,68196.0,3.08227508]